fUST/lending_fUST_20240514
["ID","MTS","AMOUNT","RATE_DAILY","PERIOD"]
[326938735,1715622648794,-5332.8,0.00054794,120]
[326938736,1715622648803,-500.0,0.00054794,120]
[326938737,1715622648812,-500.0,0.00054794,120]
[326938738,1715622648821,-500.0,0.00054794,120]
[326938739,1715622648830,-151.0,0.00054794,7]
[326938740,1715622648839,-3736.15,0.00054794,120]
[326938741,1715622648848,-1233.14,0.00054794,120]
[326938742,1715622648857,-151.0,0.00054794,7]
[326938743,1715622648866,-500.0,0.00054794,120]
[326938744,1715622648876,-676.1,0.00054794,120]
[326938745,1715622648885,-663.8,0.00054794,120]
[326938746,1715622648894,-1000.0,0.00054794,4]
[326938747,1715622648903,-565.29,0.00054794,120]
[326938748,1715622648912,-1027.24,0.00054794,120]
[326938749,1715622648922,-500.0,0.00054794,120]
[326938750,1715622648931,-10965.83,0.00054794,120]
[326938751,1715622648940,-500.0,0.00054794,120]
[326938752,1715622648949,-249.37391938,0.00054794,120]
[326938753,1715622648958,-500.0,0.00054794,120]
[326938754,1715622648968,-500.0,0.00054794,120]
[326938755,1715622648976,-500.0,0.00054794,120]
[326938756,1715622648986,-518.29220766,0.00054794,120]
[326938757,1715622648995,-590.02,0.00054794,120]
[326938758,1715622649004,-500.0,0.00054794,120]
[326938759,1715622649014,-531.27,0.00055068,120]
[326938760,1715622649023,-500.0,0.00055068,120]
[326938761,1715622649032,-578.33135504,0.00055068,120]
[326938762,1715622649044,-500.0,0.00055068,120]
[326938763,1715622649054,-500.0,0.00055068,120]
[326938764,1715622649063,-500.0,0.00055068,120]
[326938765,1715622649073,-510.11454151,0.00055068,120]
[326938766,1715622649082,-500.0,0.00055068,120]
[326938767,1715622649092,-500.0,0.00055068,120]
[326938768,1715622649101,-500.0,0.00055068,120]
[326938769,1715622649111,-500.0,0.00055068,120]
[326938770,1715622649126,-284.35,0.00055068,120]
[326938771,1715622649135,-160.2,0.00055068,120]
[326938772,1715622649144,-500.0,0.00055068,120]
[326938773,1715622649154,-500.0,0.00055068,120]
[326938774,1715622649164,-500.0,0.00055068,120]
[326938775,1715622649173,-667.24,0.00055068,120]
[326938776,1715622649183,-500.0,0.00055068,120]
[326938777,1715622649194,-803.69,0.00055068,4]
[326938778,1715622649203,-2146.43,0.00055068,120]
[326938779,1715622649212,-500.0,0.00055068,120]
[326938780,1715622649222,-151.0,0.00055068,120]
[326938781,1715622649232,-500.0,0.00055068,120]
[326938782,1715622649241,-1663.28,0.00055068,120]
[326938783,1715622649251,-500.0,0.00055068,120]
[326938784,1715622649260,-500.0,0.00055068,120]
[326938785,1715622649269,-500.0,0.00055068,120]
[326938786,1715622649278,-523.02,0.00055068,120]
[326938787,1715622649289,-525.58,0.00055068,120]
[326938788,1715622649298,-151.0,0.00055068,120]
[326938789,1715622649308,-509.91,0.00055068,120]
[326938790,1715622649317,-500.0,0.00055068,120]
[326938791,1715622649327,-500.0,0.00055068,2]
[326938792,1715622649336,-500.0,0.00055068,30]
[326938793,1715622649345,-500.0,0.00055068,120]
[326938794,1715622649354,-500.0,0.00055068,120]
[326938795,1715622649364,-500.0,0.00055068,120]
[326938796,1715622649374,-500.0,0.00055068,120]
[326938797,1715622649383,-2739.99,0.00055068,2]
[326938798,1715622649393,-500.0,0.00055068,120]
[326938799,1715622649402,-500.0,0.00055068,120]
[326938800,1715622649411,-515.59121601,0.00055068,120]
[326938801,1715622649420,-500.0,0.00055068,120]
[326938802,1715622649430,-575.34,0.00055068,120]
[326938803,1715622649439,-500.0,0.00055068,120]
[326938804,1715622649449,-500.0,0.00055068,120]
[326938805,1715622649458,-500.0,0.00055068,120]
[326938806,1715622649468,-500.0,0.00055068,2]
[326938807,1715622649477,-500.0,0.00055068,120]
[326938808,1715622649487,-541.76512069,0.00055068,120]
[326938809,1715622649496,-500.0,0.00055068,120]
[326938810,1715622649506,-500.0,0.00055068,120]
[326938811,1715622649515,-524.32,0.00055068,120]
[326938812,1715622649524,-500.0,0.00055068,120]
[326938813,1715622649534,-517.57,0.00055068,120]
[326938814,1715622649544,-586.98,0.00055068,120]
[326938815,1715622649554,-503.64663083,0.00055068,120]
[326938816,1715622649564,-500.0,0.00055068,120]
[326938817,1715622649573,-616.68218095,0.00055068,120]
[326938818,1715622649582,-500.0,0.00055068,120]
[326938819,1715622649592,-500.0,0.00055068,120]
[326938820,1715622649601,-629.36789002,0.00055068,120]
[326938821,1715622649610,-185.72170722,0.00055068,120]
[326938822,1715622649620,-500.0,0.00055068,120]
[326938823,1715622649629,-500.0,0.00055068,120]
[326938824,1715622649639,-500.0,0.00055068,120]
[326938825,1715622649648,-151.0,0.00055068,120]
[326938826,1715622649657,-637.21,0.00055068,21]
[326938827,1715622649667,-151.0,0.00055068,120]
[326938828,1715622649676,-500.0,0.00055068,120]
[326938829,1715622649686,-500.0,0.00055068,120]
[326938830,1715622649696,-500.0,0.00055068,120]
[326938831,1715622649705,-948.35,0.00055068,2]
[326938832,1715622649714,-425.30607603,0.00055068,120]
[326938833,1715622649724,-549.75913637,0.00055068,120]
[326938834,1715622649733,-1528.03,0.00055068,120]
[326938835,1715622649742,-585.26,0.00055068,120]
[326938836,1715622649752,-1000.0,0.00055068,120]
[326938837,1715622649761,-649.37,0.00055068,120]
[326938838,1715622649770,-561.08,0.00055068,120]
[326938839,1715622649779,-500.0,0.00055068,120]
[326938840,1715622649790,-1764.18,0.00055068,120]
[326938841,1715622649799,-500.0,0.00055068,120]
[326938842,1715622649809,-500.0,0.00055068,120]
[326938843,1715622649817,-500.0,0.00055068,120]
[326938844,1715622649826,-5332.8,0.00055068,120]
[326938845,1715622649916,-500.0,0.00055068,120]
[326938846,1715622649926,-500.0,0.00055068,120]
[326938847,1715622649936,-500.0,0.00055068,120]
[326938848,1715622649946,-3736.15,0.00055068,120]
[326938849,1715622649955,-151.0,0.00055068,120]
[326938850,1715622649964,-1233.14,0.00055068,120]
[326938851,1715622649974,-151.0,0.00055068,120]
[326938852,1715622649983,-500.0,0.00055068,120]
[326938853,1715622649993,-676.1,0.00055068,120]
[326938854,1715622650002,-663.8,0.00055068,120]
[326938855,1715622650011,-1000.0,0.00055068,4]
[326938856,1715622650021,-565.29,0.00055068,120]
[326938857,1715622650030,-1027.24,0.00055068,120]
[326938858,1715622650042,-10965.83,0.00055068,120]
[326938859,1715622650051,-500.0,0.00055068,120]
[326938860,1715622650060,-500.0,0.00055068,120]
[326938861,1715622650069,-500.0,0.00055068,120]
[326938862,1715622650079,-590.02,0.00055068,120]
[326938863,1715622650088,-500.0,0.00055068,120]
[326938864,1715622650097,-276.20879459,0.00055331,120]
[326938865,1715622650107,-151.0,0.00055331,120]
[326938866,1715622650116,-151.0,0.00055331,120]
[326938867,1715622650130,-151.0,0.00055331,120]
[326938868,1715622650139,-531.27,0.00055342,120]
[326938869,1715622650148,-500.0,0.00055342,120]
[326938870,1715622650157,-500.0,0.00055342,120]
[326938871,1715622650167,-331.14,0.00055342,120]
[326938872,1715622650176,-500.0,0.00055342,120]
[326938873,1715622650186,-500.0,0.00055342,120]
[326938874,1715622650195,-500.0,0.00055342,120]
[326938875,1715622650206,-500.0,0.00055342,120]
[326938876,1715622650215,-262.01620832,0.00055342,120]
[326938877,1715622650226,-500.0,0.00055342,120]
[326938878,1715622650235,-500.0,0.00055342,120]
[326938879,1715622650245,-307.86639296,0.00055342,120]
[326938880,1715622650254,-667.24,0.00055342,120]
[326938881,1715622650263,-500.0,0.00055342,120]
[326938882,1715622650272,-803.69,0.00055342,4]
[326938883,1715622650281,-2146.43,0.00055342,120]
[326938884,1715622650294,-500.0,0.00055342,120]
[326938885,1715622650303,-500.0,0.00055342,120]
[326938886,1715622650313,-151.0,0.00055342,120]
[326938887,1715622650322,-1663.28,0.00055342,120]
[326938888,1715622650331,-483.76795751,0.00055342,120]
[326938889,1715622650340,-500.0,0.00055342,120]
[326938890,1715622650349,-500.0,0.00055342,120]
[326938891,1715622650359,-525.58,0.00055342,120]
[326938892,1715622650368,-151.0,0.00055342,120]
[326938893,1715622650377,-509.91,0.00055342,120]
[326938894,1715622650387,-500.0,0.00055342,120]
[326938895,1715622650396,-500.0,0.00055342,2]
[326938896,1715622650405,-500.0,0.00055342,30]
[326938897,1715622650414,-500.0,0.00055342,120]
[326938898,1715622650423,-500.0,0.00055342,120]
[326938899,1715622650433,-500.0,0.00055342,120]
[326938900,1715622650443,-2739.99,0.00055342,2]
[326938901,1715622650451,-500.0,0.00055342,120]
[326938902,1715622650461,-500.0,0.00055342,120]
[326938903,1715622650480,-500.0,0.00055342,120]
[326938904,1715622650492,-575.34,0.00055342,120]
[326938905,1715622650502,-500.0,0.00055342,120]
[326938906,1715622650512,-500.0,0.00055342,120]
[326938907,1715622650522,-500.0,0.00055342,120]
[326938908,1715622650532,-151.894999,0.00055342,120]
[326938909,1715622650544,-502.23130893,0.00055342,2]
[326938910,1715622650553,-151.0,0.00055342,120]
[326938911,1715622650563,-500.0,0.00055342,120]
[326938912,1715622650572,-500.0,0.00055342,120]
[326938913,1715622650581,-500.0,0.00055342,120]
[326938914,1715622650591,-500.0,0.00055342,120]
[326938915,1715622650601,-517.57,0.00055342,120]
[326938916,1715622650611,-586.98,0.00055342,120]
[326938917,1715622650620,-500.0,0.00055342,120]
[326938918,1715622650630,-500.0,0.00055342,120]
[326938919,1715622650639,-500.0,0.00055342,120]
[326938920,1715622650649,-500.0,0.00055342,120]
[326938921,1715622650658,-500.0,0.00055342,120]
[326938922,1715622650667,-207.99258978,0.00055342,120]
[326938923,1715622650677,-637.21,0.00055342,21]
[326938924,1715622650686,-500.0,0.00055342,120]
[326938925,1715622650697,-500.0,0.00055342,120]
[326938926,1715622650706,-500.0,0.00055342,120]
[326938927,1715622650717,-948.35,0.00055342,2]
[326938928,1715622650727,-1528.03,0.00055342,120]
[326938929,1715622650737,-585.26,0.00055342,120]
[326938930,1715622650748,-1000.0,0.00055342,120]
[326938931,1715622650758,-649.37,0.00055342,120]
[326938932,1715622650768,-561.08,0.00055342,120]
[326938933,1715622650777,-500.0,0.00055342,120]
[326938934,1715622650787,-1764.18,0.00055342,120]
[326938935,1715622650796,-500.0,0.00055342,120]
[326938936,1715622650806,-310.38,0.00055342,120]
[326938937,1715622650815,-500.0,0.00055342,120]
[326938938,1715622650825,-5332.8,0.00055342,120]
[326938939,1715622650835,-500.0,0.00055342,120]
[326938940,1715622650844,-500.0,0.00055342,120]
[326938941,1715622650854,-500.0,0.00055342,120]
[326938942,1715622650864,-3736.15,0.00055342,120]
[326938943,1715622650873,-1233.14,0.00055342,120]
[326938944,1715622650884,-500.0,0.00055342,120]
[326938945,1715622650895,-676.1,0.00055342,120]
[326938946,1715622650905,-663.8,0.00055342,120]
[326938947,1715622650915,-1000.0,0.00055342,4]
[326938948,1715622650924,-565.29,0.00055342,120]
[326938949,1715622650934,-1027.24,0.00055342,120]
[326938950,1715622650944,-10965.83,0.00055342,120]
[326938951,1715622650954,-500.0,0.00055342,120]
[326938952,1715622650963,-500.0,0.00055342,120]
[326938953,1715622650974,-500.0,0.00055342,120]
[326938954,1715622650985,-590.02,0.00055342,120]
[326938955,1715622650995,-500.0,0.00055342,120]
[326938956,1715622651006,-531.27,0.00055616,120]
[326938957,1715622651015,-500.0,0.00055616,120]
[326938958,1715622651025,-500.0,0.00055616,120]
[326938959,1715622651034,-500.0,0.00055616,120]
[326938960,1715622651046,-500.0,0.00055616,120]
[326938961,1715622651056,-500.0,0.00055616,120]
[326938962,1715622651066,-500.0,0.00055616,120]
[326938963,1715622651075,-500.0,0.00055616,120]
[326938964,1715622651086,-511.47526611,0.00055616,120]
[326938965,1715622651096,-667.24,0.00055616,120]
[326938966,1715622651105,-500.0,0.00055616,120]
[326938967,1715622651116,-803.69,0.00055616,4]
[326938968,1715622651129,-2146.43,0.00055616,120]
[326938969,1715622651138,-500.0,0.00055616,120]
[326938970,1715622651147,-500.0,0.00055616,120]
[326938971,1715622651157,-1663.28,0.00055616,120]
[326938972,1715622651167,-500.0,0.00055616,120]
[326938973,1715622651176,-500.0,0.00055616,120]
[326938974,1715622651185,-525.58,0.00055616,120]
[326938975,1715622651196,-509.91,0.00055616,120]
[326938976,1715622651206,-503.19861482,0.00055616,120]
[326938977,1715622651216,-497.16,0.00055616,2]
[326938978,1715622651226,-500.0,0.00055616,30]
[326938979,1715622651236,-302.32,0.00055616,120]
[326938980,1715622651245,-500.0,0.00055616,120]
[326938981,1715622651255,-500.0,0.00055616,120]
[326938982,1715622651265,-2739.99,0.00055616,2]
[326938983,1715622651274,-493.84347501,0.00055616,120]
[326938984,1715622651283,-500.0,0.00055616,120]
[326938985,1715622651295,-500.0,0.00055616,120]
[326938986,1715622651304,-575.34,0.00055616,120]
[326938987,1715622651316,-500.0,0.00055616,120]
[326938988,1715622651326,-500.0,0.00055616,120]
[326938989,1715622651336,-488.20144845,0.00055616,120]
[326938990,1715622651345,-184.890101,0.00055616,120]
[326938991,1715622651355,-490.85215379,0.00055616,120]
[326938992,1715622651364,-198.0,0.00055616,120]
[326938993,1715622651374,-500.0,0.00055616,120]
[326938994,1715622651383,-500.0,0.00055616,120]
[326938995,1715622651392,-500.0,0.00055616,120]
[326938996,1715622651402,-517.57,0.00055616,120]
[326938997,1715622651413,-586.98,0.00055616,120]
[326938998,1715622651423,-500.0,0.00055616,120]
[326938999,1715622651432,-500.0,0.00055616,120]
[326939000,1715622651442,-500.0,0.00055616,120]
[326939001,1715622651453,-500.0,0.00055616,120]
[326939002,1715622651462,-500.0,0.00055616,120]
[326939003,1715622651473,-637.21,0.00055616,21]
[326939004,1715622651482,-151.0,0.00055616,120]
[326939005,1715622651492,-500.0,0.00055616,120]
[326939006,1715622651502,-309.99640744,0.00055616,120]
[326939007,1715622651512,-500.0,0.00055616,120]
[326939008,1715622651522,-948.35,0.00055616,2]
[326939009,1715622651531,-1528.03,0.00055616,120]
[326939010,1715622651543,-585.26,0.00055616,120]
[326939011,1715622651552,-1000.0,0.00055616,120]
[326939012,1715622651561,-649.37,0.00055616,120]
[326939013,1715622651570,-561.08,0.00055616,120]
[326939014,1715622651579,-500.0,0.00055616,120]
[326939015,1715622651588,-1764.18,0.00055616,120]
[326939016,1715622651598,-500.0,0.00055616,120]
[326939017,1715622651607,-500.0,0.00055616,120]
[326939018,1715622651618,-5332.8,0.00055616,120]
[326939019,1715622651628,-500.0,0.00055616,120]
[326939020,1715622651638,-500.0,0.00055616,120]
[326939021,1715622651648,-500.0,0.00055616,120]
[326939022,1715622651658,-3736.15,0.00055616,120]
[326939023,1715622651668,-1233.14,0.00055616,120]
[326939024,1715622651678,-151.0,0.00055616,120]
[326939025,1715622651687,-500.0,0.00055616,120]
[326939026,1715622651697,-676.1,0.00055616,120]
[326939027,1715622651706,-663.8,0.00055616,120]
[326939028,1715622651716,-1000.0,0.00055616,4]
[326939029,1715622651725,-565.29,0.00055616,120]
[326939030,1715622651735,-1027.24,0.00055616,120]
[326939031,1715622651744,-10965.83,0.00055616,120]
[326939032,1715622651754,-500.0,0.00055616,120]
[326939033,1715622651763,-500.0,0.00055616,120]
[326939034,1715622651773,-500.0,0.00055616,120]
[326939035,1715622651783,-590.02,0.00055616,120]
[326939036,1715622651793,-500.0,0.00055616,120]
[326939037,1715622651803,-281.0,0.000558,35]
[326939038,1715622651812,-531.27,0.0005589,120]
[326939039,1715622651821,-500.0,0.0005589,120]
[326939040,1715622651830,-500.0,0.0005589,120]
[326939041,1715622651840,-500.0,0.0005589,120]
[326939042,1715622651849,-500.0,0.0005589,120]
[326939043,1715622651859,-500.0,0.0005589,120]
[326939044,1715622651868,-500.0,0.0005589,120]
[326939045,1715622651877,-500.0,0.0005589,120]
[326939046,1715622651887,-667.24,0.0005589,120]
[326939047,1715622651896,-500.0,0.0005589,120]
[326939048,1715622651905,-803.69,0.0005589,4]
[326939049,1715622651915,-2146.43,0.0005589,120]
[326939050,1715622651924,-500.0,0.0005589,120]
[326939051,1715622651934,-500.0,0.0005589,120]
[326939052,1715622651943,-1663.28,0.0005589,120]
[326939053,1715622651953,-500.0,0.0005589,120]
[326939054,1715622651962,-500.0,0.0005589,120]
[326939055,1715622651972,-525.58,0.0005589,120]
[326939056,1715622651982,-509.91,0.0005589,120]
[326939057,1715622651991,-500.0,0.0005589,30]
[326939058,1715622652000,-500.0,0.0005589,120]
[326939059,1715622652010,-500.0,0.0005589,120]
[326939060,1715622652019,-2739.99,0.0005589,2]
[326939061,1715622652028,-500.0,0.0005589,120]
[326939062,1715622652039,-500.0,0.0005589,120]
[326939063,1715622652049,-575.34,0.0005589,120]
[326939064,1715622652058,-500.0,0.0005589,120]
[326939065,1715622652068,-500.0,0.0005589,120]
[326939066,1715622652077,-500.0,0.0005589,120]
[326939067,1715622652087,-500.0,0.0005589,120]
[326939068,1715622652097,-500.0,0.0005589,120]
[326939069,1715622652107,-517.57,0.0005589,120]
[326939070,1715622652117,-586.98,0.0005589,120]
[326939071,1715622652131,-500.0,0.0005589,120]
[326939072,1715622652140,-500.0,0.0005589,120]
[326939073,1715622652150,-500.0,0.0005589,120]
[326939074,1715622652160,-500.0,0.0005589,120]
[326939075,1715622652170,-500.0,0.0005589,120]
[326939076,1715622652179,-637.21,0.0005589,21]
[326939077,1715622652188,-151.0,0.0005589,120]
[326939078,1715622652198,-500.0,0.0005589,120]
[326939079,1715622652209,-500.0,0.0005589,120]
[326939080,1715622652218,-948.35,0.0005589,2]
[326939081,1715622652228,-1528.03,0.0005589,120]
[326939082,1715622652237,-585.26,0.0005589,120]
[326939083,1715622652246,-1000.0,0.0005589,120]
[326939084,1715622652256,-649.37,0.0005589,120]
[326939085,1715622652265,-561.08,0.0005589,120]
[326939086,1715622652368,-500.0,0.0005589,120]
[326939087,1715622652378,-1764.18,0.0005589,120]
[326939088,1715622652388,-500.0,0.0005589,120]
[326939089,1715622652397,-500.0,0.0005589,120]
[326939090,1715622652406,-5332.8,0.0005589,120]
[326939091,1715622652415,-500.0,0.0005589,120]
[326939092,1715622652424,-520.32877874,0.0005589,120]
[326939093,1715622652434,-500.0,0.0005589,120]
[326939094,1715622652443,-3736.15,0.0005589,120]
[326939095,1715622652453,-1233.14,0.0005589,120]
[326939096,1715622652462,-151.0,0.0005589,120]
[326939097,1715622652471,-500.0,0.0005589,120]
[326939098,1715622652480,-676.1,0.0005589,120]
[326939099,1715622652489,-663.8,0.0005589,120]
[326939100,1715622652499,-1000.0,0.0005589,4]
[326939101,1715622652508,-430.5,0.0005589,120]
[326939102,1715622652518,-565.29,0.0005589,120]
[326939103,1715622652527,-1027.24,0.0005589,120]
[326939104,1715622652536,-10965.83,0.0005589,120]
[326939105,1715622652547,-150.2,0.0005589,120]
[326939106,1715622652556,-545.24293412,0.0005589,120]
[326939107,1715622652566,-507.08753753,0.0005589,120]
[326939108,1715622652575,-500.0,0.0005589,120]
[326939109,1715622652585,-590.02,0.0005589,120]
[326939110,1715622652594,-500.0,0.0005589,120]
[326939111,1715622652603,-1412.14,0.00056164,120]
[326939112,1715622652613,-531.27,0.00056164,120]
[326939113,1715622652622,-500.0,0.00056164,120]
[326939114,1715622652641,-500.0,0.00056164,120]
[326939115,1715622652652,-500.0,0.00056164,120]
[326939116,1715622652662,-500.0,0.00056164,120]
[326939117,1715622652672,-500.0,0.00056164,120]
[326939118,1715622652682,-500.0,0.00056164,120]
[326939119,1715622652692,-500.0,0.00056164,120]
[326939120,1715622652702,-667.24,0.00056164,120]
[326939121,1715622652712,-500.0,0.00056164,120]
[326939122,1715622652722,-803.69,0.00056164,4]
[326939123,1715622652731,-2146.43,0.00056164,120]
[326939124,1715622652741,-500.0,0.00056164,120]
[326939125,1715622652751,-500.0,0.00056164,120]
[326939126,1715622652760,-1663.28,0.00056164,120]
[326939127,1715622652770,-500.0,0.00056164,120]
[326939128,1715622652780,-500.0,0.00056164,120]
[326939129,1715622652790,-525.58,0.00056164,120]
[326939130,1715622652800,-509.91,0.00056164,120]
[326939131,1715622652809,-500.0,0.00056164,30]
[326939132,1715622652819,-500.0,0.00056164,120]
[326939133,1715622652828,-500.0,0.00056164,120]
[326939134,1715622652837,-2739.99,0.00056164,2]
[326939135,1715622652847,-345.74621796,0.00056164,120]
[326939136,1715622652857,-500.0,0.00056164,120]
[326939137,1715622652866,-575.34,0.00056164,120]
[326939138,1715622652875,-500.0,0.00056164,120]
[326939139,1715622652885,-424.52244695,0.00056164,120]
[326939140,1715622652895,-500.0,0.00056164,120]
[326939141,1715622652904,-500.0,0.00056164,120]
[326939142,1715622652913,-500.0,0.00056164,120]
[326939143,1715622652923,-517.57,0.00056164,120]
[326939144,1715622652933,-586.98,0.00056164,120]
[326939145,1715622652942,-496.55211104,0.00056164,120]
[326939146,1715622652952,-247.36,0.00056164,120]
[326939147,1715622652962,-500.0,0.00056164,120]
[326939148,1715622652971,-500.0,0.00056164,120]
[326939149,1715622652982,-500.0,0.00056164,120]
[326939150,1715622652992,-637.21,0.00056164,21]
[326939151,1715622653002,-500.0,0.00056164,120]
[326939152,1715622653012,-500.0,0.00056164,120]
[326939153,1715622653021,-948.35,0.00056164,2]
[326939154,1715622653032,-1528.03,0.00056164,120]
[326939155,1715622653043,-585.26,0.00056164,120]
[326939156,1715622653052,-1000.0,0.00056164,120]
[326939157,1715622653062,-649.37,0.00056164,120]
[326939158,1715622653071,-561.08,0.00056164,120]
[326939159,1715622653081,-500.0,0.00056164,120]
[326939160,1715622653091,-1764.18,0.00056164,120]
[326939161,1715622653100,-500.0,0.00056164,120]
[326939162,1715622653110,-500.0,0.00056164,120]
[326939163,1715622653120,-5332.8,0.00056164,120]
[326939164,1715622653133,-500.0,0.00056164,120]
[326939165,1715622653142,-500.0,0.00056164,120]
[326939166,1715622653152,-3736.15,0.00056164,120]
[326939167,1715622653163,-1233.14,0.00056164,120]
[326939168,1715622653173,-500.0,0.00056164,120]
[326939169,1715622653184,-676.1,0.00056164,120]
[326939170,1715622653195,-663.8,0.00056164,120]
[326939171,1715622653207,-384.50148127,0.00056164,4]
[326939172,1715622653217,-565.29,0.00056164,120]
[326939173,1715622653226,-1027.24,0.00056164,120]
[326939174,1715622653235,-10965.83,0.00056164,120]
[326939175,1715622653244,-500.0,0.00056164,120]
[326939176,1715622653253,-590.02,0.00056164,120]
[326939177,1715622653262,-500.0,0.00056164,120]
[326939178,1715622653271,-1412.14,0.00056438,120]
[326939179,1715622653281,-531.27,0.00056438,120]
[326939180,1715622653290,-500.0,0.00056438,120]
[326939181,1715622653299,-500.0,0.00056438,120]
[326939182,1715622653308,-174.40398164,0.00056438,120]
[326939183,1715622653318,-500.0,0.00056438,120]
[326939184,1715622653327,-195.36369058,0.00056438,120]
[326939185,1715622653336,-500.0,0.00056438,120]
[326939186,1715622653345,-500.0,0.00056438,120]
[326939187,1715622653354,-667.24,0.00056438,120]
[326939188,1715622653363,-500.0,0.00056438,120]
[326939189,1715622653372,-803.69,0.00056438,4]
[326939190,1715622653382,-500.0,0.00056438,120]
[326939191,1715622653391,-2146.43,0.00056438,120]
[326939192,1715622653400,-500.0,0.00056438,120]
[326939193,1715622653410,-1663.28,0.00056438,120]
[326939194,1715622653420,-500.0,0.00056438,120]
[326939195,1715622653430,-500.0,0.00056438,120]
[326939196,1715622653439,-525.58,0.00056438,120]
[326939197,1715622653448,-509.91,0.00056438,120]
[326939198,1715622653457,-500.0,0.00056438,30]
[326939199,1715622653467,-500.0,0.00056438,120]
[326939200,1715622653475,-500.0,0.00056438,120]
[326939201,1715622653484,-2739.99,0.00056438,2]
[326939202,1715622653494,-500.0,0.00056438,120]
[326939203,1715622653503,-575.34,0.00056438,120]
[326939204,1715622653512,-500.0,0.00056438,120]
[326939205,1715622653521,-500.0,0.00056438,120]
[326939206,1715622653530,-500.0,0.00056438,120]
[326939207,1715622653540,-500.0,0.00056438,120]
[326939208,1715622653550,-517.57,0.00056438,120]
[326939209,1715622653560,-586.98,0.00056438,120]
[326939210,1715622653570,-500.0,0.00056438,120]
[326939211,1715622653579,-500.0,0.00056438,120]
[326939212,1715622653588,-500.0,0.00056438,120]
[326939213,1715622653599,-637.21,0.00056438,21]
[326939214,1715622653608,-151.0,0.00056438,120]
[326939215,1715622653617,-500.0,0.00056438,120]
[326939216,1715622653627,-500.0,0.00056438,120]
[326939217,1715622653636,-948.35,0.00056438,2]
[326939218,1715622653645,-1528.03,0.00056438,120]
[326939219,1715622653655,-585.26,0.00056438,120]
[326939220,1715622653664,-649.37,0.00056438,120]
[326939221,1715622653674,-1000.0,0.00056438,120]
[326939222,1715622653683,-561.08,0.00056438,120]
[326939223,1715622653692,-500.0,0.00056438,120]
[326939224,1715622653701,-1764.18,0.00056438,120]
[326939225,1715622653711,-500.0,0.00056438,120]
[326939226,1715622653720,-500.0,0.00056438,120]
[326939227,1715622653730,-5332.8,0.00056438,120]
[326939228,1715622653739,-500.0,0.00056438,120]
[326939229,1715622653748,-500.0,0.00056438,120]
[326939230,1715622653758,-3736.15,0.00056438,120]
[326939231,1715622653767,-1233.14,0.00056438,120]
[326939232,1715622653777,-151.0,0.00056438,120]
[326939233,1715622653787,-500.0,0.00056438,120]
[326939234,1715622653798,-676.1,0.00056438,120]